{"text_format":"1","workbook":"xlsx","n_sheets":1,"sheets":["Račun dobiti i gubitka"],"not_rendered":{"charts":0,"images":0,"macros":0,"external_links":0,"defined_names":2,"comments":0,"pivot_tables":0},"unopened":[],"bounds":{"document_bytes":16777216,"sheet_cells":100000,"rows_first":2000,"rows_last":500,"rows_between":2000,"halvings":0,"cell_chars":16384,"cell_head_chars":4096},"cells_cut":0,"cells_raw":0,"read":"whole","date_system":"1900"}

{"sheet":"Račun dobiti i gubitka","index":0,"n_rows":60,"n_cols":10,"rows_kept":60,"cut":false,"hidden":false,"merged":[[56,1,56,9],[9,1,9,9],[16,1,16,9],[24,1,24,9],[38,1,38,9],[43,1,43,9]]}
[null,"Račun dobiti i gubitka"]
[]
[null,null,null,"PRETHODNO RAZDOBLJE ","PRORAČUN ","TRENUTNO RAZDOBLJE ",null,"TRENUTNO RAZDOBLJE\nKAO % PRODAJE ","% PROMJENE U ODNOSU\nNA PRETHODNO RAZDOBLJE ","% PROMJENE U ODNOSU\nNA PRORAČUN "]
[null,"Prihod od prodaje"]
[null,"Proizvod/usluga 1",null,40,50,45,null,{"$f":"IFERROR(PovratProdaje[[#This Row],[Trenutno razdoblje]]/SUBTOTAL(109,PovratProdaje[Trenutno razdoblje]),0)","v":1},{"$f":"IFERROR(PovratProdaje[[#This Row],[Trenutno razdoblje]]/PovratProdaje[[#This Row],[Prethodno razdoblje]]-1,0)","v":0.125},{"$f":"IFERROR(PovratProdaje[[#This Row],[Trenutno razdoblje]]/PovratProdaje[[#This Row],[Proračun]]-1,0)","v":-9.9999999999999978E-2}]
[null,"Proizvod/usluga 2",null,null,null,null,null,{"$f":"IFERROR(PovratProdaje[[#This Row],[Trenutno razdoblje]]/SUBTOTAL(109,PovratProdaje[Trenutno razdoblje]),0)","v":0},{"$f":"IFERROR(PovratProdaje[[#This Row],[Trenutno razdoblje]]/PovratProdaje[[#This Row],[Prethodno razdoblje]]-1,0)","v":0},{"$f":"IFERROR(PovratProdaje[[#This Row],[Trenutno razdoblje]]/PovratProdaje[[#This Row],[Proračun]]-1,0)","v":0}]
[null,"Proizvod/usluga 3",null,null,null,null,null,{"$f":"IFERROR(PovratProdaje[[#This Row],[Trenutno razdoblje]]/SUBTOTAL(109,PovratProdaje[Trenutno razdoblje]),0)","v":0},{"$f":"IFERROR(PovratProdaje[[#This Row],[Trenutno razdoblje]]/PovratProdaje[[#This Row],[Prethodno razdoblje]]-1,0)","v":0},{"$f":"IFERROR(PovratProdaje[[#This Row],[Trenutno razdoblje]]/PovratProdaje[[#This Row],[Proračun]]-1,0)","v":0}]
[null,"Proizvod/usluga 4",null,null,null,null,null,{"$f":"IFERROR(PovratProdaje[[#This Row],[Trenutno razdoblje]]/SUBTOTAL(109,PovratProdaje[Trenutno razdoblje]),0)","v":0},{"$f":"IFERROR(PovratProdaje[[#This Row],[Trenutno razdoblje]]/PovratProdaje[[#This Row],[Prethodno razdoblje]]-1,0)","v":0},{"$f":"IFERROR(PovratProdaje[[#This Row],[Trenutno razdoblje]]/PovratProdaje[[#This Row],[Proračun]]-1,0)","v":0}]
[null,"Zbroj",null,{"$f":"SUBTOTAL(109,PovratProdaje[Prethodno razdoblje])","v":40},{"$f":"SUBTOTAL(109,PovratProdaje[Proračun])","v":50},{"$f":"SUBTOTAL(109,PovratProdaje[Trenutno razdoblje])","v":45},null,{"$f":"IFERROR(PovratProdaje[[#Totals],[Trenutno razdoblje]]/PovratProdaje[[#Totals],[Trenutno razdoblje]],0)","v":1},{"$f":"IFERROR(PovratProdaje[[#Totals],[Trenutno razdoblje]]/PovratProdaje[[#Totals],[Prethodno razdoblje]]-1,0)","v":0.125},{"$f":"IFERROR(PovratProdaje[[#Totals],[Trenutno razdoblje]]/PovratProdaje[[#Totals],[Proračun]]-1,0)","v":-9.9999999999999978E-2}]
[]
[null,"Trošak prodaje"]
[null,"Proizvod/usluga 1",null,null,2,3,null,{"$f":"IFERROR(TrošakProdaje[[#This Row],[Trenutno razdoblje]]/SUBTOTAL(109,PovratProdaje[Trenutno razdoblje]),0)","v":6.6666666666666666E-2},{"$f":"IFERROR(TrošakProdaje[[#This Row],[Trenutno razdoblje]]/TrošakProdaje[[#This Row],[Prethodno razdoblje]]-1,0)","v":0},{"$f":"IFERROR(TrošakProdaje[[#This Row],[Trenutno razdoblje]]/TrošakProdaje[[#This Row],[Proračun]]-1,0)","v":0.5}]
[null,"Proizvod/usluga 2",null,null,5,3,null,{"$f":"IFERROR(TrošakProdaje[[#This Row],[Trenutno razdoblje]]/SUBTOTAL(109,PovratProdaje[Trenutno razdoblje]),0)","v":6.6666666666666666E-2},{"$f":"IFERROR(TrošakProdaje[[#This Row],[Trenutno razdoblje]]/TrošakProdaje[[#This Row],[Prethodno razdoblje]]-1,0)","v":0},{"$f":"IFERROR(TrošakProdaje[[#This Row],[Trenutno razdoblje]]/TrošakProdaje[[#This Row],[Proračun]]-1,0)","v":-0.4}]
[null,"Proizvod/usluga 3",null,null,null,1,null,{"$f":"IFERROR(TrošakProdaje[[#This Row],[Trenutno razdoblje]]/SUBTOTAL(109,PovratProdaje[Trenutno razdoblje]),0)","v":2.2222222222222223E-2},{"$f":"IFERROR(TrošakProdaje[[#This Row],[Trenutno razdoblje]]/TrošakProdaje[[#This Row],[Prethodno razdoblje]]-1,0)","v":0},{"$f":"IFERROR(TrošakProdaje[[#This Row],[Trenutno razdoblje]]/TrošakProdaje[[#This Row],[Proračun]]-1,0)","v":0}]
[null,"Proizvod/usluga 4",null,null,null,null,null,{"$f":"IFERROR(TrošakProdaje[[#This Row],[Trenutno razdoblje]]/SUBTOTAL(109,PovratProdaje[Trenutno razdoblje]),0)","v":0},{"$f":"IFERROR(TrošakProdaje[[#This Row],[Trenutno razdoblje]]/TrošakProdaje[[#This Row],[Prethodno razdoblje]]-1,0)","v":0},{"$f":"IFERROR(TrošakProdaje[[#This Row],[Trenutno razdoblje]]/TrošakProdaje[[#This Row],[Proračun]]-1,0)","v":0}]
[null,"Zbroj",null,{"$f":"SUBTOTAL(109,TrošakProdaje[Prethodno razdoblje])","v":0},{"$f":"SUBTOTAL(109,TrošakProdaje[Proračun])","v":7},{"$f":"SUBTOTAL(109,TrošakProdaje[Trenutno razdoblje])","v":7},null,{"$f":"IFERROR(TrošakProdaje[[#Totals],[Trenutno razdoblje]]/SUBTOTAL(109,PovratProdaje[Trenutno razdoblje]),0)","v":0.15555555555555556},{"$f":"IFERROR(TrošakProdaje[[#Totals],[Trenutno razdoblje]]/TrošakProdaje[[#Totals],[Prethodno razdoblje]]-1,0)","v":0},{"$f":"IFERROR(TrošakProdaje[[#Totals],[Trenutno razdoblje]]/TrošakProdaje[[#Totals],[Proračun]]-1,0)","v":0}]
[]
[null,"Bruto dobit",null,{"$f":"SUM(PovratProdaje[Prethodno razdoblje])-SUM(TrošakProdaje[Prethodno razdoblje])","v":40},{"$f":"SUM(PovratProdaje[Proračun])-SUM(TrošakProdaje[Proračun])","v":43},{"$f":"SUM(PovratProdaje[Trenutno razdoblje])-SUM(TrošakProdaje[Trenutno razdoblje])","v":38},null,{"$f":"IFERROR(F18/SUBTOTAL(109,PovratProdaje[Trenutno razdoblje]),0)","v":0.84444444444444444},{"$f":"IFERROR(F18/D18-1,0)","v":-5.0000000000000044E-2},{"$f":"IFERROR(F18/E18-1,0)","v":-0.11627906976744184}]
[]
[null,"Operativni trošak: prodaja i marketing"]
[null,"Oglašavanje",null,null,22,19,null,{"$f":"IFERROR(ProdajaIMarketing[[#This Row],[Trenutno razdoblje]]/SUBTOTAL(109,PovratProdaje[Trenutno razdoblje]),0)","v":0.42222222222222222},{"$f":"IFERROR(ProdajaIMarketing[[#This Row],[Trenutno razdoblje]]/ProdajaIMarketing[[#This Row],[Prethodno razdoblje]]-1,0)","v":0},{"$f":"IFERROR(ProdajaIMarketing[[#This Row],[Trenutno razdoblje]]/ProdajaIMarketing[[#This Row],[Proračun]]-1,0)","v":-0.13636363636363635}]
[null,"Izravni marketing",null,null,null,null,null,{"$f":"IFERROR(ProdajaIMarketing[[#This Row],[Trenutno razdoblje]]/SUBTOTAL(109,PovratProdaje[Trenutno razdoblje]),0)","v":0},{"$f":"IFERROR(ProdajaIMarketing[[#This Row],[Trenutno razdoblje]]/ProdajaIMarketing[[#This Row],[Prethodno razdoblje]]-1,0)","v":0},{"$f":"IFERROR(ProdajaIMarketing[[#This Row],[Trenutno razdoblje]]/ProdajaIMarketing[[#This Row],[Proračun]]-1,0)","v":0}]
[null,"Ostali troškovi (navedite ih)",null,null,null,null,null,{"$f":"IFERROR(ProdajaIMarketing[[#This Row],[Trenutno razdoblje]]/SUBTOTAL(109,PovratProdaje[Trenutno razdoblje]),0)","v":0},{"$f":"IFERROR(ProdajaIMarketing[[#This Row],[Trenutno razdoblje]]/ProdajaIMarketing[[#This Row],[Prethodno razdoblje]]-1,0)","v":0},{"$f":"IFERROR(ProdajaIMarketing[[#This Row],[Trenutno razdoblje]]/ProdajaIMarketing[[#This Row],[Proračun]]-1,0)","v":0}]
[null,"Zbroj",null,{"$f":"SUBTOTAL(109,ProdajaIMarketing[Prethodno razdoblje])","v":0},{"$f":"SUBTOTAL(109,ProdajaIMarketing[Proračun])","v":22},{"$f":"SUBTOTAL(109,ProdajaIMarketing[Trenutno razdoblje])","v":19},null,{"$f":"IFERROR(ProdajaIMarketing[[#Totals],[Trenutno razdoblje]]/SUBTOTAL(109,PovratProdaje[Trenutno razdoblje]),0)","v":0.42222222222222222},{"$f":"IFERROR(ProdajaIMarketing[[#Totals],[Trenutno razdoblje]]/ProdajaIMarketing[[#Totals],[Prethodno razdoblje]]-1,0)","v":0},{"$f":"IFERROR(ProdajaIMarketing[[#Totals],[Trenutno razdoblje]]/ProdajaIMarketing[[#Totals],[Proračun]]-1,0)","v":-0.13636363636363635}]
[]
[null,"Operativni trošak: opći i administrativni"]
[null,"Honorari i plaće",null,null,56,51,null,{"$f":"IFERROR(OpćenitoIAdministracija[[#This Row],[Trenutno razdoblje]]/SUBTOTAL(109,PovratProdaje[Trenutno razdoblje]),0)","v":1.1333333333333333},{"$f":"IFERROR(OpćenitoIAdministracija[[#This Row],[Trenutno razdoblje]]/OpćenitoIAdministracija[[#This Row],[Prethodno razdoblje]]-1,0)","v":0},{"$f":"IFERROR(OpćenitoIAdministracija[[#This Row],[Trenutno razdoblje]]/OpćenitoIAdministracija[[#This Row],[Proračun]]-1,0)","v":-8.9285714285714302E-2}]
[null,"Vanjske usluge",null,null,null,null,null,{"$f":"IFERROR(OpćenitoIAdministracija[[#This Row],[Trenutno razdoblje]]/SUBTOTAL(109,PovratProdaje[Trenutno razdoblje]),0)","v":0},{"$f":"IFERROR(OpćenitoIAdministracija[[#This Row],[Trenutno razdoblje]]/OpćenitoIAdministracija[[#This Row],[Prethodno razdoblje]]-1,0)","v":0},{"$f":"IFERROR(OpćenitoIAdministracija[[#This Row],[Trenutno razdoblje]]/OpćenitoIAdministracija[[#This Row],[Proračun]]-1,0)","v":0}]
[null,"Zalihe",null,null,null,null,null,{"$f":"IFERROR(OpćenitoIAdministracija[[#This Row],[Trenutno razdoblje]]/SUBTOTAL(109,PovratProdaje[Trenutno razdoblje]),0)","v":0},{"$f":"IFERROR(OpćenitoIAdministracija[[#This Row],[Trenutno razdoblje]]/OpćenitoIAdministracija[[#This Row],[Prethodno razdoblje]]-1,0)","v":0},{"$f":"IFERROR(OpćenitoIAdministracija[[#This Row],[Trenutno razdoblje]]/OpćenitoIAdministracija[[#This Row],[Proračun]]-1,0)","v":0}]
[null,"Obroci i zabava",null,null,null,null,null,{"$f":"IFERROR(OpćenitoIAdministracija[[#This Row],[Trenutno razdoblje]]/SUBTOTAL(109,PovratProdaje[Trenutno razdoblje]),0)","v":0},{"$f":"IFERROR(OpćenitoIAdministracija[[#This Row],[Trenutno razdoblje]]/OpćenitoIAdministracija[[#This Row],[Prethodno razdoblje]]-1,0)","v":0},{"$f":"IFERROR(OpćenitoIAdministracija[[#This Row],[Trenutno razdoblje]]/OpćenitoIAdministracija[[#This Row],[Proračun]]-1,0)","v":0}]
[null,"Najamnina",null,null,null,null,null,{"$f":"IFERROR(OpćenitoIAdministracija[[#This Row],[Trenutno razdoblje]]/SUBTOTAL(109,PovratProdaje[Trenutno razdoblje]),0)","v":0},{"$f":"IFERROR(OpćenitoIAdministracija[[#This Row],[Trenutno razdoblje]]/OpćenitoIAdministracija[[#This Row],[Prethodno razdoblje]]-1,0)","v":0},{"$f":"IFERROR(OpćenitoIAdministracija[[#This Row],[Trenutno razdoblje]]/OpćenitoIAdministracija[[#This Row],[Proračun]]-1,0)","v":0}]
[null,"Telefon",null,null,null,null,null,{"$f":"IFERROR(OpćenitoIAdministracija[[#This Row],[Trenutno razdoblje]]/SUBTOTAL(109,PovratProdaje[Trenutno razdoblje]),0)","v":0},{"$f":"IFERROR(OpćenitoIAdministracija[[#This Row],[Trenutno razdoblje]]/OpćenitoIAdministracija[[#This Row],[Prethodno razdoblje]]-1,0)","v":0},{"$f":"IFERROR(OpćenitoIAdministracija[[#This Row],[Trenutno razdoblje]]/OpćenitoIAdministracija[[#This Row],[Proračun]]-1,0)","v":0}]
[null,"Režije",null,null,null,null,null,{"$f":"IFERROR(OpćenitoIAdministracija[[#This Row],[Trenutno razdoblje]]/SUBTOTAL(109,PovratProdaje[Trenutno razdoblje]),0)","v":0},{"$f":"IFERROR(OpćenitoIAdministracija[[#This Row],[Trenutno razdoblje]]/OpćenitoIAdministracija[[#This Row],[Prethodno razdoblje]]-1,0)","v":0},{"$f":"IFERROR(OpćenitoIAdministracija[[#This Row],[Trenutno razdoblje]]/OpćenitoIAdministracija[[#This Row],[Proračun]]-1,0)","v":0}]
[null,"Amortizacija",null,null,null,null,null,{"$f":"IFERROR(OpćenitoIAdministracija[[#This Row],[Trenutno razdoblje]]/SUBTOTAL(109,PovratProdaje[Trenutno razdoblje]),0)","v":0},{"$f":"IFERROR(OpćenitoIAdministracija[[#This Row],[Trenutno razdoblje]]/OpćenitoIAdministracija[[#This Row],[Prethodno razdoblje]]-1,0)","v":0},{"$f":"IFERROR(OpćenitoIAdministracija[[#This Row],[Trenutno razdoblje]]/OpćenitoIAdministracija[[#This Row],[Proračun]]-1,0)","v":0}]
[null,"Osiguranje",null,null,null,null,null,{"$f":"IFERROR(OpćenitoIAdministracija[[#This Row],[Trenutno razdoblje]]/SUBTOTAL(109,PovratProdaje[Trenutno razdoblje]),0)","v":0},{"$f":"IFERROR(OpćenitoIAdministracija[[#This Row],[Trenutno razdoblje]]/OpćenitoIAdministracija[[#This Row],[Prethodno razdoblje]]-1,0)","v":0},{"$f":"IFERROR(OpćenitoIAdministracija[[#This Row],[Trenutno razdoblje]]/OpćenitoIAdministracija[[#This Row],[Proračun]]-1,0)","v":0}]
[null,"Popravci i održavanje",null,null,null,null,null,{"$f":"IFERROR(OpćenitoIAdministracija[[#This Row],[Trenutno razdoblje]]/SUBTOTAL(109,PovratProdaje[Trenutno razdoblje]),0)","v":0},{"$f":"IFERROR(OpćenitoIAdministracija[[#This Row],[Trenutno razdoblje]]/OpćenitoIAdministracija[[#This Row],[Prethodno razdoblje]]-1,0)","v":0},{"$f":"IFERROR(OpćenitoIAdministracija[[#This Row],[Trenutno razdoblje]]/OpćenitoIAdministracija[[#This Row],[Proračun]]-1,0)","v":0}]
[null,"Ostali troškovi (navedite ih)",null,null,null,null,null,{"$f":"IFERROR(OpćenitoIAdministracija[[#This Row],[Trenutno razdoblje]]/SUBTOTAL(109,PovratProdaje[Trenutno razdoblje]),0)","v":0},{"$f":"IFERROR(OpćenitoIAdministracija[[#This Row],[Trenutno razdoblje]]/OpćenitoIAdministracija[[#This Row],[Prethodno razdoblje]]-1,0)","v":0},{"$f":"IFERROR(OpćenitoIAdministracija[[#This Row],[Trenutno razdoblje]]/OpćenitoIAdministracija[[#This Row],[Proračun]]-1,0)","v":0}]
[null,"Zbroj",null,{"$f":"SUBTOTAL(109,OpćenitoIAdministracija[Prethodno razdoblje])","v":0},{"$f":"SUBTOTAL(109,OpćenitoIAdministracija[Proračun])","v":56},{"$f":"SUBTOTAL(109,OpćenitoIAdministracija[Trenutno razdoblje])","v":51},null,{"$f":"IFERROR(OpćenitoIAdministracija[[#Totals],[Trenutno razdoblje]]/SUBTOTAL(109,PovratProdaje[Trenutno razdoblje]),0)","v":1.1333333333333333},{"$f":"IFERROR(OpćenitoIAdministracija[[#Totals],[Trenutno razdoblje]]/OpćenitoIAdministracija[[#Totals],[Prethodno razdoblje]]-1,0)","v":0},{"$f":"IFERROR(OpćenitoIAdministracija[[#Totals],[Trenutno razdoblje]]/OpćenitoIAdministracija[[#Totals],[Proračun]]-1,0)","v":-8.9285714285714302E-2}]
[]
[null,"Operativni trošak: ostalo"]
[null,"Drugi operativni trošak 1",null,null,10,null,null,{"$f":"IFERROR(KategorijaDrugihOperativnihTroškova[[#This Row],[Trenutno razdoblje]]/SUBTOTAL(109,PovratProdaje[Trenutno razdoblje]),0)","v":0},{"$f":"IFERROR(KategorijaDrugihOperativnihTroškova[[#This Row],[Trenutno razdoblje]]/KategorijaDrugihOperativnihTroškova[[#This Row],[Prethodno razdoblje]]-1,0)","v":0},{"$f":"IFERROR(KategorijaDrugihOperativnihTroškova[[#This Row],[Trenutno razdoblje]]/KategorijaDrugihOperativnihTroškova[[#This Row],[Proračun]]-1,0)","v":-1}]
[null,"Drugi operativni trošak 2",null,null,null,null,null,{"$f":"IFERROR(KategorijaDrugihOperativnihTroškova[[#This Row],[Trenutno razdoblje]]/SUBTOTAL(109,PovratProdaje[Trenutno razdoblje]),0)","v":0},{"$f":"IFERROR(KategorijaDrugihOperativnihTroškova[[#This Row],[Trenutno razdoblje]]/KategorijaDrugihOperativnihTroškova[[#This Row],[Prethodno razdoblje]]-1,0)","v":0},{"$f":"IFERROR(KategorijaDrugihOperativnihTroškova[[#This Row],[Trenutno razdoblje]]/KategorijaDrugihOperativnihTroškova[[#This Row],[Proračun]]-1,0)","v":0}]
[null,"Zbroj",null,{"$f":"SUBTOTAL(109,KategorijaDrugihOperativnihTroškova[Prethodno razdoblje])","v":0},{"$f":"SUBTOTAL(109,KategorijaDrugihOperativnihTroškova[Proračun])","v":10},{"$f":"SUBTOTAL(109,KategorijaDrugihOperativnihTroškova[Trenutno razdoblje])","v":0},null,{"$f":"IFERROR(KategorijaDrugihOperativnihTroškova[[#Totals],[Trenutno razdoblje]]/SUBTOTAL(109,PovratProdaje[Trenutno razdoblje]),0)","v":0},{"$f":"IFERROR(KategorijaDrugihOperativnihTroškova[[#Totals],[Trenutno razdoblje]]/KategorijaDrugihOperativnihTroškova[[#Totals],[Prethodno razdoblje]]-1,0)","v":0},{"$f":"IFERROR(KategorijaDrugihOperativnihTroškova[[#Totals],[Trenutno razdoblje]]/KategorijaDrugihOperativnihTroškova[[#Totals],[Proračun]]-1,0)","v":-1}]
[]
[null,"Ukupni operativni troškovi",null,{"$f":"SUM(ProdajaIMarketing[Prethodno razdoblje],OpćenitoIAdministracija[Prethodno razdoblje],KategorijaDrugihOperativnihTroškova[Prethodno razdoblje])","v":0},{"$f":"SUM(ProdajaIMarketing[Proračun],OpćenitoIAdministracija[Proračun],KategorijaDrugihOperativnihTroškova[Proračun])","v":88},{"$f":"SUM(ProdajaIMarketing[Trenutno razdoblje],OpćenitoIAdministracija[Trenutno razdoblje],KategorijaDrugihOperativnihTroškova[Trenutno razdoblje])","v":70},null,{"$f":"IFERROR(F45/SUBTOTAL(109,PovratProdaje[Trenutno razdoblje]),0)","v":1.5555555555555556},{"$f":"IFERROR(F45/D45-1,0)","v":0},{"$f":"IFERROR(F45/E45-1,0)","v":-0.20454545454545459}]
[]
[null,"Prihod od operacija",null,{"$f":"D18-D45","v":40},{"$f":"E18-E45","v":-45},{"$f":"F18-F45","v":-32},null,{"$f":"IFERROR(F47/SUBTOTAL(109,#REF!),0)","v":0},{"$f":"IFERROR(IF(D47=F47,0,IF(F47>D47,ABS((F47/D47)-1),IF(AND(F47<D47,D47<0),-((F47/D47)-1),(F47/D47)-1))),0)","v":-1.8},{"$f":"IFERROR(IF(E47=F47,0,IF(F47>E47,ABS((F47/E47)-1),IF(AND(F47<E47,E47<0),-((F47/E47)-1),(F47/E47)-1))),0)","v":0.28888888888888886}]
[]
[null,"Drugi prihod",null,null,null,null,null,{"$f":"IFERROR(F49/SUBTOTAL(109,PovratProdaje[Trenutno razdoblje]),0)","v":0},{"$f":"IFERROR(F49/D49-1,0)","v":0},{"$f":"IFERROR(F49/E49-1,0)","v":0}]
[]
[null,"Porez"]
[null,"Porez na dobit",null,null,32,30,null,{"$f":"IFERROR(Porezi[[#This Row],[Trenutno razdoblje]]/SUBTOTAL(109,PovratProdaje[Trenutno razdoblje]),0)","v":0.66666666666666663},{"$f":"IFERROR(Porezi[[#This Row],[Trenutno razdoblje]]/Porezi[[#This Row],[Prethodno razdoblje]]-1,0)","v":0},{"$f":"IFERROR(Porezi[[#This Row],[Trenutno razdoblje]]/Porezi[[#This Row],[Proračun]]-1,0)","v":-6.25E-2}]
[null,"Porez za plaće",null,null,null,null,null,{"$f":"IFERROR(Porezi[[#This Row],[Trenutno razdoblje]]/SUBTOTAL(109,PovratProdaje[Trenutno razdoblje]),0)","v":0},{"$f":"IFERROR(Porezi[[#This Row],[Trenutno razdoblje]]/Porezi[[#This Row],[Prethodno razdoblje]]-1,0)","v":0},{"$f":"IFERROR(Porezi[[#This Row],[Trenutno razdoblje]]/Porezi[[#This Row],[Proračun]]-1,0)","v":0}]
[null,"Porez na nekretnine",null,null,null,null,null,{"$f":"IFERROR(Porezi[[#This Row],[Trenutno razdoblje]]/SUBTOTAL(109,PovratProdaje[Trenutno razdoblje]),0)","v":0},{"$f":"IFERROR(Porezi[[#This Row],[Trenutno razdoblje]]/Porezi[[#This Row],[Prethodno razdoblje]]-1,0)","v":0},{"$f":"IFERROR(Porezi[[#This Row],[Trenutno razdoblje]]/Porezi[[#This Row],[Proračun]]-1,0)","v":0}]
[null,"Drugi porezi (navedite)",null,null,null,null,null,{"$f":"IFERROR(Porezi[[#This Row],[Trenutno razdoblje]]/SUBTOTAL(109,PovratProdaje[Trenutno razdoblje]),0)","v":0},{"$f":"IFERROR(Porezi[[#This Row],[Trenutno razdoblje]]/Porezi[[#This Row],[Prethodno razdoblje]]-1,0)","v":0},{"$f":"IFERROR(Porezi[[#This Row],[Trenutno razdoblje]]/Porezi[[#This Row],[Proračun]]-1,0)","v":0}]
[null,"Zbroj",null,{"$f":"SUBTOTAL(109,Porezi[Prethodno razdoblje])","v":0},{"$f":"SUBTOTAL(109,Porezi[Proračun])","v":32},{"$f":"SUBTOTAL(109,Porezi[Trenutno razdoblje])","v":30},null,{"$f":"IFERROR(Porezi[[#Totals],[Trenutno razdoblje]]/SUBTOTAL(109,PovratProdaje[Trenutno razdoblje]),0)","v":0.66666666666666663},{"$f":"IFERROR(Porezi[[#Totals],[Trenutno razdoblje]]/Porezi[[#Totals],[Prethodno razdoblje]]-1,0)","v":0},{"$f":"IFERROR(Porezi[[#Totals],[Trenutno razdoblje]]/Porezi[[#Totals],[Proračun]]-1,0)","v":-6.25E-2}]
[]
[null,"Neto dobit",null,{"$f":"D47+D49-Porezi[[#Totals],[Prethodno razdoblje]]","v":40},{"$f":"E47+E49-Porezi[[#Totals],[Prethodno razdoblje]]","v":-45},{"$f":"F47+F49-Porezi[[#Totals],[Prethodno razdoblje]]","v":-32},null,{"$f":"IFERROR(F58/SUBTOTAL(109,(PovratProdaje[Trenutno razdoblje])),0)","v":-0.71111111111111114},{"$f":"IFERROR(IF(D58=F58,0,IF(F58>D58,ABS((F58/D58)-1),IF(AND(F58<D58,D58<0),-((F58/D58)-1),(F58/D58)-1))),0)","v":-1.8},{"$f":"IFERROR(IF(E58=F58,0,IF(F58>E58,ABS((F58/E58)-1),IF(AND(F58<E58,E58<0),-((F58/E58)-1),(F58/E58)-1))),0)","v":0.28888888888888886}]
[null,"Bruto marža",null,{"$f":"D18/SUM(PovratProdaje[Prethodno razdoblje])","v":1},{"$f":"E18/SUM(PovratProdaje[Proračun])","v":0.86},{"$f":"F18/SUM(PovratProdaje[Trenutno razdoblje])","v":0.84444444444444444}]
[null,"Povrat od prometa",null,{"$f":"D58/SUM(PovratProdaje[Prethodno razdoblje])","v":1},{"$f":"E58/SUM(PovratProdaje[Proračun])","v":-0.9},{"$f":"F58/SUM(PovratProdaje[Trenutno razdoblje])","v":-0.71111111111111114}]